[Event "XII Paracin Festival 2019"]
[Site "Paracin"]
[Date "2019.07.05"]
[Round "1.1"]
[White "Kecskemeti, Arpad"]
[Black "Ivanisevic, Ivan"]
[Result "0-1"]
[ECO "B48"]
[WhiteElo "2230"]
[BlackElo "2612"]
[Annotator "RC"]
[PlyCount "95"]
[EventDate "2019.07.05"]
[EventType "swiss"]
[EventCountry "SRB"]
[SourceTitle "playchess.com"]
[Source "ChessBase"]
[SourceQuality "1"]
[TimeControl "5400+30"]

1. e4 {[%emt 0:00:00]} c5 {[%emt 0:00:00]} 2. Nf3 {[%emt 0:00:00]} e6 {[%emt 0:00:00]} 3. d4 {[%emt 0:00:00]} cxd4 {[%emt 0:00:00]} 4. Nxd4 {[%emt 0:00:00]} Nc6 {[%emt 0:00:00]} 5. Nc3 {[%emt 0:00:00]} Qc7 {[%emt 0:00:00]} 6. Be3 {[%emt 0:00:00]} a6 {[%emt 0:00:08]} 7. Bd3 {[%emt 0:00:16]} Nf6 {[%emt 0:00:45]} 8. O-O {[%emt 0:00:07]} h5 {[%emt 0:00:17]} 9. h3 {[%emt 0:00:56]} b5 {[%emt 0:00:16]} 10. a3 {[%emt 0:03:28]} Bb7 {[%emt 0:03:23]} 11. Qd2 {[%emt 0:01:40]} Rc8 {[%emt 0:04:37]} 12. f4 {[%emt 0:01:55]} Nxd4 {[%emt 0:00:46]} 13. Bxd4 {[%emt 0:00:05]} Bc5 {[%emt 0:00:06]} 14. Qf2 {[%emt 0:11:49]} h4 {[%emt 0:01:18]} 15. e5 {[%emt 0:06:39]} Nh5 {[%emt 0:05:42]} 16. Bxc5 {[%emt 0:05:39]} Qxc5 {[%emt 0:04:26]} 17. Be4 {[%emt 0:02:08]} Qxf2+ {[%emt 0:05:11]} 18. Rxf2 {[%emt 0:00:22]} Bc6 {[%emt 0:02:12]} 19. Bxc6 {[%emt 0:17:03]} Rxc6 {[%emt 0:00:10]} 20. Ne4 {[%emt 0:03:01]} f5 {[%emt 0:08:32]} 21. Nd6+ {[%emt 0:10:17]} Ke7 {[%emt 0:00:07]} 22. Rd1 {[%emt 0:00:45]} g5 {[%emt 0:08:40]} 23. fxg5 {[%emt 0:03:45]} Rg8 {[%emt 0:00:16]} 24. Rfd2 {[%emt 0:13:31]} Rc7 {[%emt 0:01:58]} 25. c4 {[%emt 0:01:09]} bxc4 {[%emt 0:01:18]} 26. Rd4 {[%emt 0:03:06]} c3 {[%emt 0:07:26]} 27. bxc3 {[%emt 0:01:19]} Rxg5 {[%emt 0:00:32]} 28. Nc4 {[%emt 0:03:36]} f4 {[%emt 0:04:35]} 29. Kf2 {[%emt 0:01:45]} Rb7 {[%emt 0:07:33]} 30. Nb6 {[%emt 0:02:39]} Rxe5 {[%emt 0:05:55]} 31. Rxd7+ {[%emt 0:00:39]} Rxd7 {[%emt 0:00:07]} 32. Rxd7+ {[%emt 0:00:03]} Kf6 {[%emt 0:00:08]} 33. Rd6 {[%emt 0:01:57]} Kf5 {[%emt 0:01:49]} 34. Nc4 {[%emt 0:01:24]} Rc5 {[%emt 0:05:17]} 35. Nd2 {[%emt 0:01:43]} Ng3 {[%emt 0:01:09]} 36. c4 {[%emt 0:03:05]} Ra5 {[%emt 0:03:26]} 37. Rd3 {[%emt 0:01:55]} Re5 {[%emt 0:03:46]} 38. Nf3 {[%emt 0:00:38]} Re2+ {[%emt 0:00:51]} 39. Kg1 {[%emt 0:00:03]} e5 {[%emt 0:01:49]} 40. Nxh4+ {[%emt 0:00:58]} Ke6 {[%emt 0:00:21]} 41. Rd1 {[%emt 0:00:06]} Rc2 {[%emt 0:02:52]} 42. Re1 {[%emt 0:00:38]} e4 {[%emt 0:00:52]} 43. Ng6 {[%emt 0:00:45]} Kf5 {[%emt 0:00:07]} 44. Ne7+ {[%emt 0:00:04]} Kg5 {[%emt 0:00:37]} 45. Rd1 {[%emt 0:00:58]} f3 {[%emt 0:01:00]} 46. gxf3 {[%emt 0:00:14]} exf3 {[%emt 0:00:21]} 47. Rd5+ {[%emt 0:00:41]} Kf6 {[%emt 0:00:42]} 48. Ng8+ {[%emt 0:00:21] Ke5} 0-1

[Event "XII Paracin Festival 2019"]
[Site "Paracin"]
[Date "2019.07.05"]
[Round "1.2"]
[White "Perunovic, Milos"]
[Black "Popovic, Djordje D"]
[Result "1-0"]
[ECO "B90"]
[WhiteElo "2597"]
[BlackElo "2227"]
[Annotator "ChessBase"]
[PlyCount "69"]
[EventDate "2019.07.05"]
[EventType "swiss"]
[EventCountry "SRB"]
[SourceTitle "playchess.com"]
[Source "ChessBase"]
[SourceQuality "1"]
[TimeControl "5400+30"]

1. e4 {[%emt 0:00:00]} c5 {[%emt 0:00:00]} 2. Nf3 {[%emt 0:00:39]} d6 {[%emt 0:00:04]} 3. d4 {[%emt 0:04:41]} cxd4 {[%emt 0:00:06]} 4. Nxd4 {[%emt 0:00:08]} Nf6 {[%emt 0:00:11]} 5. Nc3 {[%emt 0:00:07]} a6 {[%emt 0:00:05]} 6. Be3 {[%emt 0:03:48]} e5 {[%emt 0:00:17]} 7. Nb3 {[%emt 0:00:12]} Be6 {[%emt 0:00:17]} 8. h3 {[%emt 0:00:26]} Nbd7 {[%emt 0:04:22]} 9. g4 {[%emt 0:04:18]} h6 {[%emt 0:02:11]} 10. Qd2 {[%emt 0:00:14]} b5 {[%emt 0:01:31]} 11. O-O-O {[%emt 0:02:10]} Nb6 {[%emt 0:16:47]} 12. Qe1 {[%emt 0:18:01]} Qc7 {[%emt 0:15:31]} 13. f4 {[%emt 0:04:30]} b4 {[%emt 0:12:18]} 14. Bxb6 {[%emt 0:03:07]} Qxb6 {[%emt 0:00:02]} 15. Nd5 {[%emt 0:00:20]} Bxd5 {[%emt 0:04:58]} 16. exd5 {[%emt 0:00:30]} Nd7 {[%emt 0:02:25]} 17. Nd4 {[%emt 0:02:38]} Be7 {[%emt 0:07:51]} 18. Nc6 {[%emt 0:02:24]} Bf6 {[%emt 0:01:56]} 19. h4 {[%emt 0:05:37]} a5 {[%emt 0:06:26]} 20. Bd3 {[%emt 0:03:54]} g6 {[%emt 0:10:44]} 21. Rf1 {[%emt 0:08:59]} O-O {[%emt 0:02:30]} 22. g5 {[%emt 0:01:11]} Bg7 {[%emt 0:04:20]} 23. f5 {[%emt 0:04:25]} e4 {[%emt 0:01:26]} 24. Bxe4 {[%emt 0:03:03]} gxf5 {[%emt 0:00:08]} 25. Ne7+ {[%emt 0:07:50]} Kh8 {[%emt 0:00:19]} 26. Nxf5 {[%emt 0:00:06]} b3 {[%emt 0:02:26]} 27. cxb3 {[%emt 0:02:14]} a4 {[%emt 0:00:32]} 28. Nxg7 {[%emt 0:00:48]} axb3 {[%emt 0:00:15]} 29. a3 {[%emt 0:00:29]} Qc5+ {[%emt 0:03:28]} 30. Kb1 {[%emt 0:00:07]} Rxa3 {[%emt 0:00:37]} 31. bxa3 {[%emt 0:02:02]} Qxa3 {[%emt 0:00:16]} 32. Rf2 {[%emt 0:01:02]} Rc8 {[%emt 0:00:51]} 33. Rc1 {[%emt 0:01:20]} Ra8 {[%emt 0:00:39]} 34. Qc3 {[%emt 0:00:09]} Ne5 {[%emt 0:00:13]} 35. gxh6 {[%emt 0:00:35]} 1-0

[Event "XII Paracin Festival 2019"]
[Site "Paracin"]
[Date "2019.07.05"]
[Round "1.3"]
[White "Banovic, Ivan"]
[Black "Svetushkin, Dmitry"]
[Result "0-1"]
[ECO "A46"]
[WhiteElo "2227"]
[BlackElo "2528"]
[Annotator "ChessBase"]
[PlyCount "48"]
[EventDate "2019.07.05"]
[EventType "swiss"]
[EventCountry "SRB"]
[SourceTitle "playchess.com"]
[Source "ChessBase"]
[SourceQuality "1"]
[TimeControl "5400+30"]

1. d4 {[%emt 0:00:00]} Nf6 {[%emt 0:00:00]} 2. Nf3 {[%emt 0:00:14]} e6 {[%emt 0:01:29]} 3. Bf4 {[%emt 0:00:55]} c5 {[%emt 0:00:51]} 4. e3 {[%emt 0:01:52]} d5 {[%emt 0:00:08]} 5. c3 {[%emt 0:01:27]} Nc6 {[%emt 0:00:09]} 6. Nbd2 {[%emt 0:01:35]} Be7 {[%emt 0:00:23]} 7. Bd3 {[%emt 0:01:30]} Nh5 {[%emt 0:00:09]} 8. Bg3 {[%emt 0:04:04]} Nxg3 {[%emt 0:10:33]} 9. hxg3 {[%emt 0:00:08]} h6 {[%emt 0:00:15]} 10. g4 {[%emt 0:11:18]} Bd7 {[%emt 0:04:14]} 11. Qe2 {[%emt 0:02:24]} Qb6 {[%emt 0:00:52]} 12. Rb1 {[%emt 0:13:10]} O-O-O {[%emt 0:10:56]} 13. Ne5 {[%emt 0:15:32]} Nxe5 {[%emt 0:03:55]} 14. dxe5 {[%emt 0:02:00]} f6 {[%emt 0:01:15]} 15. exf6 {[%emt 0:05:54]} gxf6 {[%emt 0:06:32]} 16. e4 {[%emt 0:05:52]} Kb8 {[%emt 0:11:36]} 17. exd5 {[%emt 0:02:42]} exd5 {[%emt 0:00:24]} 18. Kf1 {[%emt 0:01:33]} Bd6 {[%emt 0:01:19]} 19. c4 {[%emt 0:05:21]} Rhe8 {[%emt 0:08:48]} 20. Qf3 {[%emt 0:06:14]} Qb4 {[%emt 0:00:12]} 21. Rd1 {[%emt 0:01:02]} Bc7 {[%emt 0:03:25]} 22. Rh4 {[%emt 0:08:58]} dxc4 {[%emt 0:02:11]} 23. Nxc4 {[%emt 0:04:59]} Bc6 {[%emt 0:00:42]} 24. Qf5 {[%emt 0:01:00]} Qxc4 {[%emt 0:00:35]} 0-1

[Event "XII Paracin Festival 2019"]
[Site "Paracin"]
[Date "2019.07.05"]
[Round "1.4"]
[White "Korpa, Bence"]
[Black "Sahin, Ozgun"]
[Result "1/2-1/2"]
[ECO "A37"]
[WhiteElo "2523"]
[BlackElo "2214"]
[Annotator "ChessBase"]
[PlyCount "111"]
[EventDate "2019.07.05"]
[EventType "swiss"]
[EventCountry "SRB"]
[SourceTitle "playchess.com"]
[Source "ChessBase"]
[SourceQuality "1"]
[TimeControl "5400+30"]

1. Nf3 {[%emt 0:00:00]} c5 {[%emt 0:00:00]} 2. g3 {[%emt 0:00:11]} Nc6 {[%emt 0:00:00]} 3. Bg2 {[%emt 0:00:20]} g6 {[%emt 0:00:00]} 4. c4 {[%emt 0:00:42]} Bg7 {[%emt 0:00:00]} 5. Nc3 {[%emt 0:00:09]} e6 {[%emt 0:00:07]} 6. d3 {[%emt 0:02:34]} Nge7 {[%emt 0:00:10]} 7. Bd2 {[%emt 0:00:49]} d5 {[%emt 0:02:14]} 8. a3 {[%emt 0:05:03]} O-O {[%emt 0:00:48]} 9. Rb1 {[%emt 0:01:17]} dxc4 {[%emt 0:07:17]} 10. dxc4 {[%emt 0:00:09]} Nd4 {[%emt 0:00:20]} 11. e3 {[%emt 0:17:47]} Nxf3+ {[%emt 0:03:30]} 12. Bxf3 {[%emt 0:00:07]} Qd3 {[%emt 0:15:11]} 13. Qe2 {[%emt 0:08:53]} Qxe2+ {[%emt 0:00:21]} 14. Kxe2 {[%emt 0:00:08]} Rb8 {[%emt 0:02:24]} 15. Nb5 {[%emt 0:04:14]} Nc6 {[%emt 0:02:19]} 16. Rhd1 {[%emt 0:16:39]} Ne5 {[%emt 0:07:10]} 17. Nxa7 {[%emt 0:09:37]} Nxc4 {[%emt 0:01:36]} 18. Bc1 {[%emt 0:00:12]} Ne5 {[%emt 0:02:33]} 19. Nxc8 {[%emt 0:04:42]} Rfxc8 {[%emt 0:00:04]} 20. Be4 {[%emt 0:01:41]} b5 {[%emt 0:02:46]} 21. b3 {[%emt 0:05:11]} c4 {[%emt 0:07:31]} 22. f4 {[%emt 0:03:13]} c3 {[%emt 0:05:21]} 23. fxe5 {[%emt 0:02:59]} c2 {[%emt 0:00:23]} 24. Bxc2 {[%emt 0:00:05]} Rxc2+ {[%emt 0:00:05]} 25. Rd2 {[%emt 0:00:27]} Rxd2+ {[%emt 0:03:09]} 26. Kxd2 {[%emt 0:03:59]} Bxe5 {[%emt 0:00:45]} 27. Bb2 {[%emt 0:00:09]} Bd6 {[%emt 0:02:15]} 28. Ra1 {[%emt 0:07:28]} h5 {[%emt 0:00:33]} 29. Bf6 {[%emt 0:00:14]} Kf8 {[%emt 0:09:21]} 30. a4 {[%emt 0:00:11]} bxa4 {[%emt 0:00:04]} 31. bxa4 {[%emt 0:00:05]} Ke8 {[%emt 0:03:25]} 32. a5 {[%emt 0:03:15]} Kd7 {[%emt 0:00:21]} 33. a6 {[%emt 0:00:52]} e5 {[%emt 0:03:35]} 34. e4 {[%emt 0:00:08]} Ra8 {[%emt 0:02:54]} 35. Kd3 {[%emt 0:00:43]} Kc6 {[%emt 0:00:40]} 36. Kc4 {[%emt 0:00:10]} Bc7 {[%emt 0:01:01]} 37. Bg5 {[%emt 0:01:03]} f5 {[%emt 0:00:15]} 38. Be3 {[%emt 0:00:17]} f4 {[%emt 0:01:45]} 39. Bf2 {[%emt 0:00:09]} Bb6 {[%emt 0:03:18]} 40. Bxb6 {[%emt 0:01:48]} Kxb6 {[%emt 0:00:02]} 41. gxf4 {[%emt 0:00:20]} exf4 {[%emt 0:00:04]} 42. e5 {[%emt 0:00:14]} f3 {[%emt 0:04:00]} 43. h4 {[%emt 0:01:55]} Rxa6 {[%emt 0:08:00]} 44. Rxa6+ {[%emt 0:00:40]} Kxa6 {[%emt 0:00:01]} 45. Kd3 {[%emt 0:00:06]} Kb6 {[%emt 0:00:08]} 46. Ke3 {[%emt 0:00:04]} Kc6 {[%emt 0:00:03]} 47. Kxf3 {[%emt 0:00:03]} Kd5 {[%emt 0:00:02]} 48. Kf4 {[%emt 0:00:07]} Ke6 {[%emt 0:00:02]} 49. Ke4 {[%emt 0:00:05]} Kd7 {[%emt 0:00:16]} 50. Kd5 {[%emt 0:02:15]} Ke7 {[%emt 0:00:03]} 51. Kd4 {[%emt 0:00:52]} Ke6 {[%emt 0:00:06]} 52. Ke4 {[%emt 0:00:06]} Kd7 {[%emt 0:00:04]} 53. Kd5 {[%emt 0:00:32]} Ke7 {[%emt 0:00:03]} 54. e6 {[%emt 0:00:15]} g5 {[%emt 0:01:50]} 55. hxg5 {[%emt 0:00:14]} h4 {[%emt 0:00:03]} 56. Ke4 {[%emt 0:00:38]} 1/2-1/2

[Event "XII Paracin Festival 2019"]
[Site "Paracin"]
[Date "2019.07.05"]
[Round "1.5"]
[White "Vafin, Ayrat"]
[Black "Sanal, Vahap"]
[Result "1/2-1/2"]
[ECO "A05"]
[WhiteElo "2213"]
[BlackElo "2520"]
[Annotator "ChessBase"]
[PlyCount "54"]
[EventDate "2019.07.05"]
[EventType "swiss"]
[EventCountry "SRB"]
[SourceTitle "playchess.com"]
[Source "ChessBase"]
[SourceQuality "1"]
[TimeControl "5400+30"]

1. Nf3 {[%emt 0:00:00]} Nf6 {[%emt 0:00:23]} 2. g3 {[%emt 0:01:46]} b6 {[%emt 0:00:34]} 3. Bg2 {[%emt 0:00:23]} Bb7 {[%emt 0:00:08]} 4. d4 {[%emt 0:01:07]} e6 {[%emt 0:02:57]} 5. O-O {[%emt 0:00:22]} c5 {[%emt 0:01:50]} 6. c4 {[%emt 0:00:14]} cxd4 {[%emt 0:01:26]} 7. Qxd4 {[%emt 0:00:02]} Be7 {[%emt 0:01:07]} 8. Nc3 {[%emt 0:00:18]} Nc6 {[%emt 0:00:11]} 9. Qd2 {[%emt 0:12:19]} O-O {[%emt 0:01:22]} 10. b3 {[%emt 0:00:39]} a6 {[%emt 0:01:44]} 11. Bb2 {[%emt 0:01:32]} Rc8 {[%emt 0:01:14]} 12. e4 {[%emt 0:07:38]} Qc7 {[%emt 0:07:03]} 13. Rfe1 {[%emt 0:02:49]} d6 {[%emt 0:05:03]} 14. Qe2 {[%emt 0:01:40]} Rfe8 {[%emt 0:05:38]} 15. Rad1 {[%emt 0:07:46]} Nd7 {[%emt 0:02:35]} 16. Rd2 {[%emt 0:08:00]} Qb8 {[%emt 0:06:32]} 17. h4 {[%emt 0:08:19]} Nde5 {[%emt 0:02:29]} 18. Nh2 {[%emt 0:03:07]} Nd7 {[%emt 0:12:13]} 19. f4 {[%emt 0:02:34]} Nc5 {[%emt 0:01:40]} 20. h5 {[%emt 0:06:16]} h6 {[%emt 0:06:59]} 21. Ng4 {[%emt 0:03:01]} Kf8 {[%emt 0:01:46]} 22. Qd1 {[%emt 0:07:48]} Ba8 {[%emt 0:01:24]} 23. Qa1 {[%emt 0:01:05]} Kg8 {[%emt 0:00:52]} 24. Qd1 {[%emt 0:07:19]} Kf8 {[%emt 0:10:56]} 25. Qa1 {[%emt 0:00:06]} f6 {[%emt 0:00:19]} 26. Qb1 {[%emt 0:01:45]} e5 {[%emt 0:06:17]} 27. Nd5 {[%emt 0:01:50]} Bd8 {[%emt 0:01:07]} 1/2-1/2

[Event "XII Paracin Festival 2019"]
[Site "Paracin"]
[Date "2019.07.05"]
[Round "1.6"]
[White "Tan, Justin"]
[Black "Mullick, Raahil"]
[Result "1-0"]
[ECO "A06"]
[WhiteElo "2513"]
[BlackElo "2211"]
[Annotator "ChessBase"]
[PlyCount "65"]
[EventDate "2019.07.05"]
[EventType "swiss"]
[EventCountry "SRB"]
[SourceTitle "playchess.com"]
[Source "ChessBase"]
[SourceQuality "1"]
[TimeControl "5400+30"]

1. Nf3 {[%emt 0:00:00]} d5 {[%emt 0:00:09]} 2. e3 {[%emt 0:00:24]} Nf6 {[%emt 0:00:30]} 3. c4 {[%emt 0:00:06]} c6 {[%emt 0:00:33]} 4. Nc3 {[%emt 0:00:16]} g6 {[%emt 0:00:16]} 5. d4 {[%emt 0:00:31]} Bg7 {[%emt 0:00:20]} 6. Be2 {[%emt 0:00:07]} O-O {[%emt 0:00:25]} 7. O-O {[%emt 0:00:07]} a6 {[%emt 0:02:03]} 8. b3 {[%emt 0:02:26]} b5 {[%emt 0:07:42]} 9. Ba3 {[%emt 0:01:37]} Qa5 {[%emt 0:08:59]} 10. Bb2 {[%emt 0:00:42]} bxc4 {[%emt 0:07:13]} 11. bxc4 {[%emt 0:01:05]} Ra7 {[%emt 0:00:59]} 12. Nd2 {[%emt 0:04:30]} Rb7 {[%emt 0:07:12]} 13. Nb3 {[%emt 0:01:11]} Qb4 {[%emt 0:03:16]} 14. Qc1 {[%emt 0:04:56]} Bf5 {[%emt 0:07:59]} 15. Ba3 {[%emt 0:03:08]} Qb6 {[%emt 0:00:05]} 16. h3 {[%emt 0:08:34]} h5 {[%emt 0:01:13]} 17. Nc5 {[%emt 0:01:14]} Ra7 {[%emt 0:01:17]} 18. Rd1 {[%emt 0:02:55]} Re8 {[%emt 0:04:47]} 19. Bf3 {[%emt 0:04:46]} Qd8 {[%emt 0:05:30]} 20. Nd3 {[%emt 0:08:29]} g5 {[%emt 0:07:40]} 21. Ne5 {[%emt 0:01:51]} g4 {[%emt 0:00:17]} 22. hxg4 {[%emt 0:00:10]} hxg4 {[%emt 0:00:02]} 23. e4 {[%emt 0:06:26]} dxe4 24. Be2 e6 {[%emt 0:10:10]} 25. Qe3 {[%emt 0:04:57]} Rc7 {[%emt 0:08:05]} 26. Rab1 {[%emt 0:03:29]} Qc8 {[%emt 0:05:52]} 27. Bd6 {[%emt 0:01:31]} Rb7 {[%emt 0:00:18]} 28. Rxb7 {[%emt 0:00:13]} Qxb7 {[%emt 0:00:12]} 29. Rb1 {[%emt 0:00:03]} Qa8 {[%emt 0:00:58]} 30. Bd1 {[%emt 0:05:28]} Nbd7 {[%emt 0:03:39]} 31. Bc2 {[%emt 0:03:08]} Nxe5 {[%emt 0:04:13]} 32. Bxe5 {[%emt 0:03:31]} Qd8 33. Ba4 {[%emt 0:08:23]} 1-0

[Event "XII Paracin Festival 2019"]
[Site "Paracin"]
[Date "2019.07.05"]
[Round "1.7"]
[White "Pasti, Aron"]
[Black "Vishnu Prasanna. V"]
[Result "0-1"]
[ECO "B90"]
[WhiteElo "2209"]
[BlackElo "2505"]
[Annotator "ChessBase"]
[PlyCount "108"]
[EventDate "2019.07.05"]
[EventType "swiss"]
[EventCountry "SRB"]
[SourceTitle "playchess.com"]
[Source "ChessBase"]
[SourceQuality "1"]
[TimeControl "5400+30"]

1. e4 {[%emt 0:00:00]} c5 {[%emt 0:00:00]} 2. Nf3 {[%emt 0:00:00]} d6 {[%emt 0:00:00]} 3. d4 {[%emt 0:00:00]} cxd4 {[%emt 0:00:00]} 4. Nxd4 {[%emt 0:00:09]} Nf6 {[%emt 0:00:00]} 5. Nc3 {[%emt 0:00:14]} a6 {[%emt 0:00:00]} 6. h3 {[%emt 0:00:10]} g6 {[%emt 0:00:06]} 7. g4 {[%emt 0:01:15]} Bg7 {[%emt 0:00:09]} 8. Bg2 {[%emt 0:00:13]} h5 {[%emt 0:00:13]} 9. g5 {[%emt 0:07:11]} Nfd7 {[%emt 0:00:08]} 10. O-O {[%emt 0:03:29]} Nc6 {[%emt 0:00:39]} 11. Be3 {[%emt 0:04:15]} O-O {[%emt 0:00:17]} 12. Nce2 {[%emt 0:08:10]} Nb6 {[%emt 0:03:15]} 13. Nxc6 {[%emt 0:14:14]} bxc6 {[%emt 0:00:10]} 14. Bd4 {[%emt 0:01:31]} e5 {[%emt 0:01:21]} 15. Be3 {[%emt 0:07:21]} Rb8 {[%emt 0:01:47]} 16. b3 {[%emt 0:08:46]} d5 {[%emt 0:00:51]} 17. c3 {[%emt 0:06:02]} Qe7 {[%emt 0:02:11]} 18. Qd2 {[%emt 0:06:16]} Rd8 {[%emt 0:02:18]} 19. Rad1 {[%emt 0:01:31]} Be6 {[%emt 0:03:15]} 20. Bxb6 {[%emt 0:02:23]} Rxb6 {[%emt 0:00:18]} 21. exd5 {[%emt 0:01:21]} cxd5 {[%emt 0:02:31]} 22. c4 {[%emt 0:01:11]} e4 {[%emt 0:11:02]} 23. Nf4 {[%emt 0:07:11]} d4 {[%emt 0:00:28]} 24. Rfe1 {[%emt 0:01:02]} Bf5 {[%emt 0:06:21]} 25. Nd5 {[%emt 0:03:32]} Rxd5 {[%emt 0:00:07]} 26. cxd5 {[%emt 0:00:05]} Qe5 {[%emt 0:00:34]} 27. Re2 {[%emt 0:05:26]} d3 {[%emt 0:05:21]} 28. Re3 {[%emt 0:00:46]} Qxd5 {[%emt 0:02:26]} 29. Qe1 {[%emt 0:04:18]} Re6 {[%emt 0:04:45]} 30. Rdxd3 {[%emt 0:01:52]} Qxd3 {[%emt 0:00:09]} 31. Rxd3 {[%emt 0:00:04]} exd3 {[%emt 0:00:04]} 32. Qb4 {[%emt 0:00:27]} Bf8 {[%emt 0:00:32]} 33. Qc3 {[%emt 0:00:58]} Rd6 {[%emt 0:01:21]} 34. Qd2 {[%emt 0:01:26]} Rd4 {[%emt 0:00:09]} 35. Qe3 {[%emt 0:00:22]} Rd7 {[%emt 0:00:04]} 36. Bf3 {[%emt 0:02:40]} d2 {[%emt 0:00:50]} 37. Bd1 {[%emt 0:00:05]} Bb4 {[%emt 0:00:52]} 38. Kh2 {[%emt 0:02:18]} Kh7 {[%emt 0:01:32]} 39. h4 {[%emt 0:00:42]} a5 {[%emt 0:02:03]} 40. f3 {[%emt 0:00:28]} Re7 {[%emt 0:05:14]} 41. Qd4 {[%emt 0:00:09]} Re1 {[%emt 0:02:36]} 42. a3 {[%emt 0:00:48]} Rxd1 {[%emt 0:00:19]} 43. axb4 {[%emt 0:00:07]} Rc1 {[%emt 0:00:03]} 44. Qxd2 {[%emt 0:01:01]} Rc2 {[%emt 0:00:05]} 45. Qxc2 {[%emt 0:00:17]} Bxc2 {[%emt 0:00:05]} 46. bxa5 {[%emt 0:00:14]} Bxb3 {[%emt 0:00:04]} 47. a6 {[%emt 0:00:54]} Kg7 {[%emt 0:00:13]} 48. Kg3 {[%emt 0:00:27]} Bd5 {[%emt 0:00:04]} 49. f4 {[%emt 0:00:27]} f6 {[%emt 0:00:48]} 50. Kf2 {[%emt 0:00:22]} Kf7 {[%emt 0:00:08]} 51. Ke3 {[%emt 0:00:29]} Ke6 {[%emt 0:00:06]} 52. Kd4 {[%emt 0:00:35]} fxg5 {[%emt 0:01:18]} 53. fxg5 {[%emt 0:00:08]} Kd6 {[%emt 0:00:04]} 54. a7 {[%emt 0:00:35]} Ba8 {[%emt 0:00:10]} 0-1

[Event "XII Paracin Festival 2019"]
[Site "Paracin"]
[Date "2019.07.05"]
[Round "1.8"]
[White "Savic, Miodrag R"]
[Black "Manish Anto Cristiano F"]
[Result "1-0"]
[ECO "B22"]
[WhiteElo "2503"]
[BlackElo "2208"]
[Annotator "ChessBase"]
[PlyCount "121"]
[EventDate "2019.07.05"]
[EventType "swiss"]
[EventCountry "SRB"]
[SourceTitle "playchess.com"]
[Source "ChessBase"]
[SourceQuality "1"]
[TimeControl "5400+30"]

1. e4 {[%emt 0:00:00]} c5 {[%emt 0:00:00]} 2. c3 {[%emt 0:00:00]} d5 {[%emt 0:00:15]} 3. exd5 {[%emt 0:00:02]} Qxd5 {[%emt 0:00:42]} 4. Nf3 {[%emt 0:00:07]} Nf6 {[%emt 0:00:26]} 5. Na3 {[%emt 0:00:16]} a6 {[%emt 0:06:55]} 6. Nc4 {[%emt 0:03:05]} b5 {[%emt 0:04:40]} 7. Ne3 {[%emt 0:01:30]} Qc6 {[%emt 0:11:00]} 8. a4 {[%emt 0:05:14]} b4 {[%emt 0:02:36]} 9. cxb4 {[%emt 0:04:40]} cxb4 {[%emt 0:00:19]} 10. b3 {[%emt 0:01:42]} Nbd7 {[%emt 0:03:12]} 11. Bb2 {[%emt 0:01:15]} e6 {[%emt 0:02:43]} 12. Rc1 {[%emt 0:01:04]} Qb6 {[%emt 0:03:20]} 13. Be2 {[%emt 0:26:43]} Bb7 {[%emt 0:04:15]} 14. O-O {[%emt 0:00:03]} Be7 {[%emt 0:03:08]} 15. Rc4 {[%emt 0:00:08]} Rc8 {[%emt 0:04:52]} 16. Rxc8+ {[%emt 0:10:40]} Bxc8 {[%emt 0:00:02]} 17. d4 {[%emt 0:07:43]} Bb7 {[%emt 0:04:00]} 18. Ne5 {[%emt 0:03:34]} O-O {[%emt 0:03:55]} 19. Nxd7 {[%emt 0:00:14]} Nxd7 {[%emt 0:00:20]} 20. d5 {[%emt 0:00:20]} Qd6 {[%emt 0:12:35]} 21. dxe6 {[%emt 0:06:24]} Qxe6 {[%emt 0:00:53]} 22. Bc4 {[%emt 0:02:21]} Qc6 {[%emt 0:00:46]} 23. Qg4 {[%emt 0:07:25]} Bf6 {[%emt 0:04:13]} 24. Bd5 {[%emt 0:00:53]} Qc7 {[%emt 0:02:24]} 25. Rc1 {[%emt 0:01:39]} Qb8 {[%emt 0:01:01]} 26. Qxd7 {[%emt 0:02:46]} Bxb2 {[%emt 0:00:41]} 27. Rc4 {[%emt 0:04:50]} Bxd5 {[%emt 0:00:54]} 28. Nxd5 {[%emt 0:01:22]} Rd8 {[%emt 0:04:33]} 29. Rxb4 {[%emt 0:02:33]} Qa8 {[%emt 0:00:14]} 30. Qb7 {[%emt 0:00:26]} Qxb7 {[%emt 0:01:35]} 31. Rxb7 {[%emt 0:00:02]} Kf8 {[%emt 0:04:02]} 32. Ne3 {[%emt 0:00:22]} Bc1 {[%emt 0:00:55]} 33. Nf1 {[%emt 0:02:02]} a5 {[%emt 0:01:04]} 34. Rb5 {[%emt 0:00:39]} Bd2 {[%emt 0:00:15]} 35. g3 {[%emt 0:01:19]} Bb4 {[%emt 0:00:31]} 36. Ne3 {[%emt 0:00:04]} g6 {[%emt 0:01:14]} 37. Nd5 {[%emt 0:00:51]} Bd2 {[%emt 0:00:10]} 38. Kf1 {[%emt 0:00:09]} Re8 {[%emt 0:00:07]} 39. Kg2 {[%emt 0:01:02]} h5 {[%emt 0:00:18]} 40. h4 {[%emt 0:00:47]} Re1 {[%emt 0:01:20]} 41. Nb6 {[%emt 0:02:01]} Rb1 {[%emt 0:00:20]} 42. Nc4 {[%emt 0:00:02]} Bb4 {[%emt 0:00:13]} 43. Rb7 {[%emt 0:00:14]} f6 {[%emt 0:01:46]} 44. Rb5 {[%emt 0:00:20]} Kf7 {[%emt 0:00:14]} 45. Rb7+ {[%emt 0:01:10]} Ke6 {[%emt 0:00:08]} 46. Rb6+ {[%emt 0:00:01]} Kf7 {[%emt 0:00:24]} 47. Kh3 {[%emt 0:01:44]} Rf1 {[%emt 0:00:19]} 48. Kg2 {[%emt 0:00:29]} Rb1 {[%emt 0:00:11]} 49. Ne3 {[%emt 0:00:16]} Rxb3 {[%emt 0:00:19]} 50. Nd5 {[%emt 0:00:10]} f5 {[%emt 0:00:06]} 51. Nf4 {[%emt 0:01:16]} Ra3 {[%emt 0:01:39]} 52. Rxg6 {[%emt 0:00:27]} Rxa4 {[%emt 0:00:34]} 53. Rg5 {[%emt 0:00:01]} Ra2 {[%emt 0:03:09]} 54. Rxf5+ {[%emt 0:00:06]} Kg8 {[%emt 0:00:08]} 55. Rg5+ {[%emt 0:00:52]} Kf7 {[%emt 0:00:02]} 56. Rf5+ {[%emt 0:00:05]} Kg8 {[%emt 0:00:18]} 57. Nd3 {[%emt 0:00:23]} Bc3 {[%emt 0:00:22]} 58. Rxh5 {[%emt 0:00:18]} a4 {[%emt 0:00:09]} 59. Rc5 {[%emt 0:00:09]} Rc2 {[%emt 0:00:11]} 60. Rc8+ {[%emt 0:00:33]} Kf7 {[%emt 0:00:12]} 61. Nb4 {[%emt 0:00:46]} 1-0